bitfinex/quotes_BTCUSD_20250320
["timestamp","ask_amount","ask_price","bid_price","bid_amount"]
[1742469702207,0.80563788,85497.0,85496.0,6e-07]
[1742469702387,0.81063788,85497.0,85496.0,6e-07]
[1742469703992,0.82898454,85497.0,85496.0,6e-07]
[1742469704321,0.95355957,85497.0,85496.0,6e-07]
[1742469704723,0.97855957,85497.0,85496.0,6e-07]
[1742469705783,0.83398454,85497.0,85496.0,6e-07]
[1742469705980,0.85898454,85497.0,85496.0,6e-07]
[1742469708369,1.26758454,85497.0,85496.0,6e-07]
[1742469710011,1.24258454,85497.0,85496.0,6e-07]
[1742469710213,1.24258454,85497.0,85483.0,4e-07]
[1742469710214,0.674459,85484.0,85483.0,4e-07]
[1742469710408,1.21717488,85484.0,85483.0,4e-07]
[1742469710987,1.22186588,85484.0,85483.0,4e-07]
[1742469711677,1.22686588,85484.0,85483.0,5.887e-05]
[1742469711857,3.66295088,85484.0,85483.0,5.887e-05]
[1742469712053,3.60628088,85484.0,85483.0,5.887e-05]
[1742469712257,3.02815188,85484.0,85483.0,5.887e-05]
[1742469712459,2.97409688,85484.0,85483.0,5.887e-05]
[1742469712891,2.97909688,85484.0,85483.0,5.887e-05]
[1742469713256,1.23186588,85484.0,85483.0,5.887e-05]
[1742469713503,3.11236088,85484.0,85483.0,5.887e-05]
[1742469713710,3.13071134,85484.0,85483.0,5.887e-05]
[1742469715061,2.55998734,85484.0,85483.0,5.887e-05]
[1742469715410,2.58369708,85484.0,85483.0,5.887e-05]
[1742469717159,1.27392608,85484.0,85483.0,5.887e-05]
[1742469718561,3.35834908,85484.0,85483.0,5.887e-05]
[1742469718838,3.35857408,85484.0,85483.0,5.887e-05]
[1742469720031,2.74060908,85484.0,85483.0,5.887e-05]
[1742469720607,2.74060908,85484.0,85472.0,0.0003388]
[1742469720608,0.550691,85473.0,85472.0,6.7e-07]
[1742469720839,0.80960688,85473.0,85472.0,3.1e-07]
[1742469721072,0.245728,85460.0,85459.0,0.0003388]
[1742469721324,0.36530303,85460.0,85459.0,0.00038054]
[1742469722707,0.36630303,85460.0,85459.0,0.00038054]
[1742469723487,0.44340303,85460.0,85459.0,0.00038054]
[1742469723705,0.46175582,85460.0,85459.0,0.00038054]
[1742469726173,0.48507742,85460.0,85459.0,0.00038054]
[1742469726997,0.50461827,85460.0,85459.0,0.00038054]
[1742469727192,1.82756627,85460.0,85459.0,0.00038054]
[1742469727445,1.44966627,85460.0,85459.0,0.00038054]
[1742469727654,1.45166627,85460.0,85459.0,0.00038054]
[1742469727797,1.44866627,85460.0,85459.0,0.00038054]
[1742469727999,1.45166627,85460.0,85459.0,0.00038054]
[1742469728239,1.5752413,85460.0,85459.0,0.00038054]
[1742469728399,0.85251827,85460.0,85459.0,5.4e-07]
[1742469728939,0.85651827,85460.0,85459.0,5.4e-07]
[1742469729339,0.85251827,85460.0,85459.0,5.4e-07]
[1742469729679,0.32624285,85454.0,85453.0,7.4e-07]
[1742469729794,0.44581788,85454.0,85453.0,7.4e-07]
[1742469731276,0.45081788,85454.0,85453.0,7.4e-07]
[1742469731830,0.45481788,85454.0,85453.0,7.4e-07]
[1742469732239,0.53251788,85454.0,85453.0,7.4e-07]
[1742469733040,0.32624285,85452.0,85451.0,0.00027834]
[1742469733238,0.44581788,85452.0,85451.0,0.00027834]
[1742469733739,3.66722188,85452.0,85451.0,3.4e-07]
[1742469733928,0.45081788,85452.0,85451.0,3.4e-07]
[1742469734348,0.58310988,85452.0,85451.0,3.4e-07]
[1742469734504,0.99170988,85452.0,85451.0,3.4e-07]
[1742469735480,0.99670988,85452.0,85451.0,3.4e-07]
[1742469735683,0.99270988,85452.0,85451.0,3.4e-07]
[1742469735916,0.99770988,85452.0,85451.0,3.4e-07]
[1742469736909,1.01606676,85452.0,85451.0,3.4e-07]
[1742469738244,1.13564179,85452.0,85451.0,3.4e-07]
[1742469740346,1.01606676,85452.0,85451.0,3.4e-07]
[1742469741512,1.16446676,85452.0,85451.0,3.4e-07]
[1742469741749,1.14610988,85452.0,85451.0,3.4e-07]
[1742469742616,1.14110988,85452.0,85451.0,3.4e-07]
[1742469743953,1.13610988,85452.0,85451.0,3.4e-07]
[1742469744095,1.26568491,85452.0,85451.0,3.4e-07]
[1742469744649,1.27404404,85452.0,85451.0,3.4e-07]
[1742469745068,1.28404404,85452.0,85451.0,3.4e-07]
[1742469745247,1.28438304,85452.0,85451.0,3.4e-07]
[1742469747153,1.16480801,85452.0,85451.0,3.4e-07]
[1742469753520,1.17705525,85452.0,85451.0,3.4e-07]
[1742469757236,1.15869612,85452.0,85451.0,3.4e-07]
[1742469760120,1.17705509,85452.0,85451.0,3.4e-07]
[1742469767193,1.20946154,85452.0,85451.0,3.4e-07]
[1742469767396,1.32903657,85452.0,85451.0,3.4e-07]
[1742469768194,1.29663012,85452.0,85451.0,3.4e-07]
[1742469768393,1.29163012,85452.0,85451.0,3.4e-07]
[1742469768592,0.245866,85412.0,85411.0,0.0003388]
[1742469768802,0.245866,85412.0,85411.0,0.00040241]
[1742469768803,0.36544103,85412.0,85411.0,0.00040241]
[1742469769163,0.36544103,85412.0,85411.0,0.08200241]
[1742469769366,0.38380269,85412.0,85411.0,0.08200241]
[1742469771979,0.40680832,85412.0,85411.0,0.08200241]
[1742469777154,0.26887163,85412.0,85411.0,0.08200241]
[1742469780223,0.28723243,85412.0,85411.0,0.08200241]
[1742469786972,0.28723243,85412.0,85411.0,0.00040241]
[1742469787372,0.40680746,85412.0,85411.0,0.00040241]
[1742469787870,0.38844666,85412.0,85411.0,0.00040241]
[1742469788300,0.78398751,85412.0,85411.0,0.00040241]
[1742469788578,0.78398751,85412.0,85410.0,2.1e-07]
[1742469788579,0.32624885,85411.0,85410.0,2.1e-07]
[1742469788786,1.46004788,85411.0,85410.0,2.1e-07]
[1742469788999,0.44582388,85411.0,85410.0,2.1e-07]
[1742469790587,0.46418795,85411.0,85410.0,2.1e-07]
[1742469791283,0.46718795,85411.0,85410.0,2.1e-07]
[1742469791629,0.47018795,85411.0,85410.0,2.1e-07]
[1742469792829,0.58976298,85411.0,85410.0,2.1e-07]
[1742469793632,0.47018795,85411.0,85410.0,2.1e-07]
[1742469793902,0.46418795,85411.0,85410.0,2.1e-07]
[1742469794273,0.47218795,85411.0,85410.0,2.1e-07]
[1742469794605,0.46818795,85411.0,85410.0,2.1e-07]
[1742469794811,0.46418795,85411.0,85410.0,2.1e-07]
[1742469795109,0.47218795,85411.0,85410.0,2.1e-07]
[1742469795967,0.54071287,85411.0,85410.0,2.1e-07]
[1742469796555,0.47218795,85411.0,85410.0,2.1e-07]
[1742469798852,0.46818795,85411.0,85410.0,2.1e-07]
[1742469799230,0.47318795,85411.0,85410.0,2.1e-07]
[1742469799772,0.47818795,85411.0,85410.0,2.1e-07]
[1742469800174,0.9191944,85411.0,85410.0,2.1e-07]
[1742469800395,1.06709891,85411.0,85410.0,2.1e-07]
[1742469800681,0.94352388,85411.0,85410.0,2.1e-07]
[1742469800916,0.97352388,85411.0,85410.0,2.1e-07]
[1742469801126,1.52616388,85411.0,85410.0,2.1e-07]
[1742469801970,1.53116388,85411.0,85410.0,2.1e-07]
[1742469802148,0.97352388,85411.0,85410.0,2.1e-07]
[1742469802307,1.13559891,85411.0,85410.0,2.1e-07]
[1742469802729,1.02102388,85411.0,85410.0,2.1e-07]
[1742469803371,1.57870388,85411.0,85410.0,2.1e-07]
[1742469805155,1.59207129,85411.0,85410.0,2.1e-07]
[1742469805359,1.58741029,85411.0,85410.0,2.1e-07]
[1742469805681,1.59741029,85411.0,85410.0,2.1e-07]
[1742469806098,1.64308603,85411.0,85410.0,2.1e-07]
[1742469807255,1.63308603,85411.0,85410.0,2.1e-07]
[1742469808462,1.63808603,85411.0,85410.0,2.1e-07]
[1742469808878,1.64308603,85411.0,85410.0,2.1e-07]
[1742469809295,1.77548603,85411.0,85410.0,2.1e-07]
[1742469810059,1.64308603,85411.0,85410.0,2.1e-07]
[1742469810240,1.75711862,85411.0,85410.0,2.1e-07]
[1742469810445,1.55950203,85411.0,85410.0,2.1e-07]
[1742469810650,1.57046203,85411.0,85410.0,2.1e-07]
[1742469811138,1.58500288,85411.0,85410.0,2.1e-07]
[1742469811457,1.56000288,85411.0,85410.0,2.1e-07]
[1742469812770,1.58500288,85411.0,85410.0,2.1e-07]
[1742469813361,1.70457791,85411.0,85410.0,2.1e-07]
[1742469813550,1.72294482,85411.0,85410.0,2.1e-07]
[1742469814902,1.79984482,85411.0,85410.0,2.1e-07]
[1742469815077,1.68026979,85411.0,85410.0,2.1e-07]
[1742469816289,1.68026979,85411.0,85396.0,0.0001694]
[1742469816290,0.545906,85398.0,85397.0,2e-08]
[1742469816439,0.81238188,85398.0,85397.0,2e-08]
[1742469816889,0.81707788,85398.0,85397.0,2e-08]
[1742469817245,0.83544549,85398.0,85397.0,2e-08]
[1742469817424,0.84544549,85398.0,85397.0,2e-08]
[1742469820332,1.48701099,85398.0,85397.0,2e-08]
[1742469820536,1.40316549,85398.0,85397.0,2e-08]
[1742469822702,1.42672066,85398.0,85397.0,2e-08]
[1742469825706,1.42668066,85398.0,85397.0,2e-08]
[1742469828140,1.40326066,85398.0,85397.0,2e-08]
[1742469828534,1.41496966,85398.0,85397.0,2e-08]
[1742469828679,1.28264966,85398.0,85397.0,2e-08]
[1742469828883,1.41560966,85398.0,85397.0,2e-08]
[1742469834299,1.41560966,85398.0,85397.0,2e-08]
[1742469836271,1.28264966,85398.0,85397.0,2e-08]
[1742469836414,1.41556966,85398.0,85397.0,2e-08]
[1742469837516,1.39720205,85398.0,85397.0,2e-08]
[1742469838223,1.39712205,85398.0,85397.0,2e-08]
[1742469838397,1.39212205,85398.0,85397.0,2e-08]
[1742469838597,1.39712205,85398.0,85397.0,2e-08]
[1742469838937,1.39212205,85398.0,85397.0,2e-08]
[1742469839138,1.39712205,85398.0,85397.0,2e-08]
[1742469839753,1.39212205,85398.0,85397.0,2e-08]
[1742469840086,1.39712205,85398.0,85397.0,2e-08]
[1742469840465,1.41548977,85398.0,85397.0,2e-08]
[1742469840674,1.26810892,85398.0,85397.0,2e-08]
[1742469840891,1.40086892,85398.0,85397.0,2e-08]
[1742469841141,1.40120792,85398.0,85397.0,2e-08]
[1742469841928,1.39620792,85398.0,85397.0,2e-08]
[1742469842124,1.39120792,85398.0,85397.0,2e-08]
[1742469842346,1.39620792,85398.0,85397.0,2e-08]
[1742469843128,1.40112792,85398.0,85397.0,2e-08]
[1742469843742,1.26844792,85398.0,85397.0,2e-08]
[1742469843944,1.3781042,85398.0,85397.0,0.07590002]
[1742469844145,1.2453842,85398.0,85397.0,0.07590002]
[1742469844351,1.2453842,85398.0,85397.0,0.12370002]
[1742469844352,0.03389417,85398.0,85397.0,0.12370002]
[1742469844552,0.17836317,85398.0,85397.0,0.12370002]
[1742469844757,0.154808,85398.0,85397.0,0.12370002]
[1742469845333,0.010339,85398.0,85397.0,0.12370002]
[1742469845534,0.000339,85398.0,85397.0,0.35790002]
[1742469845733,0.003339,85398.0,85397.0,0.36961002]
[1742469845922,0.018048,85398.0,85397.0,0.12370002]
[1742469846386,0.015048,85398.0,85397.0,0.12370002]
[1742469846837,0.249245,85398.0,85397.0,0.12370002]
[1742469847039,0.02170342,85398.0,85397.0,0.12370002]
[1742469847363,0.03341242,85398.0,85397.0,0.12370002]
[1742469847548,0.26760942,85398.0,85397.0,0.12370002]
[1742469847814,0.26460942,85398.0,85397.0,0.12370002]
[1742469848357,0.26460942,85398.0,85397.0,0.12570002]
[1742469849102,0.26460942,85398.0,85397.0,0.12770002]
[1742469849864,0.25290042,85398.0,85397.0,0.12770002]
[1742469850067,0.26460942,85398.0,85397.0,0.12770002]
[1742469850831,0.01870342,85398.0,85397.0,0.12770002]
[1742469851235,0.01870342,85398.0,85397.0,0.13941002]
[1742469851403,0.01870342,85398.0,85397.0,0.37361002]
[1742469851598,0.000339,85398.0,85397.0,0.37361002]
[1742469852209,0.000339,85398.0,85397.0,0.12770002]
[1742469852720,0.000339,85398.0,85397.0,0.13941002]
[1742469853055,0.000339,85398.0,85397.0,0.12770002]
[1742469853257,0.000339,85398.0,85397.0,0.13941002]
[1742469853858,0.000339,85398.0,85397.0,0.12770002]
[1742469854084,0.000339,85398.0,85397.0,0.13941002]
[1742469854220,0.000339,85398.0,85397.0,0.12770002]
[1742469854857,0.26460931,85398.0,85397.0,0.12770002]
[1742469855243,0.01870331,85398.0,85397.0,0.12770002]
[1742469855450,0.03041231,85398.0,85397.0,0.12770002]
[1742469855903,0.01870331,85398.0,85397.0,0.12770002]
[1742469856746,0.01870331,85398.0,85397.0,0.36190002]
[1742469856948,0.01870331,85398.0,85397.0,0.12770002]
[1742469859353,0.01870331,85398.0,85397.0,0.14175186]
[1742469859585,0.01870331,85398.0,85397.0,0.14175164]
[1742469860222,0.01870331,85398.0,85397.0,0.13941002]
[1742469860907,0.000339,85398.0,85397.0,0.13941002]
[1742469863824,0.01870296,85398.0,85397.0,0.13941002]
[1742469864024,0.01870296,85398.0,85397.0,0.36190002]
[1742469864187,0.01870296,85398.0,85397.0,0.37361002]
[1742469868692,0.01870296,85398.0,85397.0,0.12770002]
[1742469869051,0.03041196,85398.0,85397.0,0.12770002]
[1742469869455,0.03041196,85398.0,85397.0,0.00400002]
[1742469870101,0.14998699,85398.0,85397.0,0.00400002]
[1742469870709,0.13162303,85398.0,85397.0,0.00400002]
[1742469871664,0.13162303,85398.0,85397.0,0.00200002]
[1742469871870,0.13162303,85398.0,85397.0,2e-08]
[1742469873338,0.13262303,85398.0,85397.0,2e-08]
[1742469873853,0.15098886,85398.0,85397.0,2e-08]
[1742469874081,0.15298886,85398.0,85397.0,2e-08]
[1742469875411,0.03341383,85398.0,85397.0,2e-08]
[1742469875702,0.16549383,85398.0,85397.0,2e-08]
[1742469875902,0.02170483,85398.0,85397.0,0.01171002]
[1742469876437,0.02170483,85398.0,85397.0,2e-08]
[1742469876640,0.26761083,85398.0,85397.0,2e-08]
[1742469877353,0.26561083,85398.0,85397.0,2e-08]
[1742469878158,0.26461083,85398.0,85397.0,2e-08]
[1742469878473,0.26461083,85398.0,85397.0,0.00200002]
[1742469878695,0.03041383,85398.0,85397.0,0.00200002]
[1742469878890,0.01870483,85398.0,85397.0,0.00200002]
[1742469879119,0.01870483,85398.0,85397.0,0.01371002]
[1742469880216,0.03041383,85398.0,85397.0,0.00200002]
[1742469880899,0.012048,85398.0,85397.0,0.00200002]
[1742469881633,0.012048,85398.0,85397.0,2e-08]
[1742469882043,0.012048,85398.0,85397.0,0.00100002]
[1742469882540,0.012048,85398.0,85397.0,2e-08]
[1742469882954,0.012048,85398.0,85397.0,0.00100002]
[1742469883985,0.000339,85398.0,85397.0,0.23520002]
[1742469884179,0.000339,85398.0,85397.0,0.00100002]
[1742469885362,0.01870334,85398.0,85397.0,0.00100002]
[1742469885698,0.01870334,85398.0,85397.0,0.01271002]
[1742469889456,0.03041234,85398.0,85397.0,0.00100002]
[1742469890248,0.01870334,85398.0,85397.0,0.00100002]
[1742469890513,0.01870334,85398.0,85397.0,0.01271002]
[1742469890838,0.01870334,85398.0,85397.0,0.00100002]
[1742469893756,0.03041234,85398.0,85397.0,0.00100002]
[1742469893959,0.012048,85398.0,85397.0,0.00100002]
[1742469894189,0.000339,85398.0,85397.0,0.00100002]
[1742469894800,0.012048,85398.0,85397.0,0.00100002]
[1742469897066,0.0304126,85398.0,85397.0,0.00100002]
[1742469897496,0.0185036,85398.0,85397.0,0.00100002]
[1742469898081,0.0302126,85398.0,85397.0,0.00100002]
[1742469901710,0.0185036,85398.0,85397.0,0.01271002]
[1742469901959,0.000139,85398.0,85397.0,0.01271002]
[1742469904964,0.0185031,85398.0,85397.0,0.01271002]
[1742469906773,0.0185031,85398.0,85397.0,0.00100002]
[1742469907335,0.0185031,85398.0,85397.0,0.01271002]
[1742469910337,0.0185031,85398.0,85397.0,0.00100002]
[1742469910672,0.0185031,85398.0,85397.0,0.01271002]
[1742469916918,0.0185031,85398.0,85397.0,0.01471002]
[1742469917505,0.0185031,85398.0,85397.0,0.01271002]
[1742469917838,0.0185031,85398.0,85397.0,0.01471002]
[1742469935124,0.000139,85398.0,85397.0,0.13662668]
[1742469935457,0.000339,85411.0,85410.0,0.245872]
[1742469935634,0.000339,85411.0,85410.0,0.80048788]
[1742469935635,0.00040721,85411.0,85410.0,0.80048788]
[1742469938143,0.01876594,85411.0,85410.0,0.80048788]
[1742469938340,0.01876594,85411.0,85410.0,0.80348788]
[1742469938869,0.01876594,85411.0,85410.0,0.80948788]
[1742469940281,0.01876594,85411.0,85410.0,1.22438748]
[1742469943535,0.01876594,85411.0,85410.0,1.23635521]
[1742469943936,0.01876594,85411.0,85410.0,1.24135521]
[1742469945458,0.01876594,85411.0,85410.0,2.74135521]
[1742469948497,0.01876594,85411.0,85410.0,2.73635521]
[1742469948654,0.01876594,85411.0,85410.0,1.23635521]
[1742469949054,0.01876594,85411.0,85410.0,1.36751521]
[1742469952895,0.01876594,85411.0,85410.0,2.86751521]
[1742469953681,0.01876594,85411.0,85410.0,3.42487521]
[1742469954087,0.00040721,85411.0,85410.0,3.42487521]
[1742469957014,0.01876543,85411.0,85410.0,3.42487521]
[1742469957226,0.01876543,85411.0,85410.0,3.34957521]
[1742469958143,0.01876543,85411.0,85410.0,3.37358178]
[1742469962593,0.01876543,85411.0,85410.0,3.30421521]
[1742469963549,0.00040721,85411.0,85410.0,3.30421521]
[1742469964072,0.00040721,85411.0,85410.0,1.64670663]
[1742469964876,0.00040721,85411.0,85410.0,1.64070663]
[1742469965315,0.00140721,85411.0,85410.0,1.64570663]
[1742469966287,0.00140721,85411.0,85410.0,1.64270663]
[1742469966492,0.01976659,85411.0,85410.0,1.64570663]
[1742469967425,0.01960659,85411.0,85410.0,1.64570663]
[1742469967884,0.01960659,85411.0,85410.0,3.14570663]
[1742469972723,0.00124721,85411.0,85410.0,3.14570663]
[1742469972939,0.00124721,85411.0,85410.0,2.58834663]
[1742469975821,0.01960641,85411.0,85410.0,2.58834663]
[1742469975954,0.01960641,85411.0,85410.0,2.60288748]
[1742469976156,0.01960641,85411.0,85410.0,1.10288748]
[1742469976654,0.01960641,85411.0,85410.0,2.60288748]
[1742469976845,0.01960641,85411.0,85410.0,2.63949462]
[1742469979987,0.01960641,85411.0,85410.0,1.13949462]
[1742469981157,0.00124721,85411.0,85410.0,1.25611377]
[1742469981369,0.00124721,85411.0,85410.0,1.08834663]
[1742469982325,0.00124721,85411.0,85410.0,1.19305616]
[1742469982823,0.09005521,85411.0,85410.0,0.11270953]
[1742469983656,0.13515521,85411.0,85410.0,0.11270953]
[1742469983860,0.13515521,85411.0,85410.0,0.10970953]
[1742469984099,0.15351608,85411.0,85410.0,0.10970953]
[1742469984304,0.15251608,85411.0,85410.0,0.10787893]
[1742469984713,0.15251608,85411.0,85410.0,0.11287893]
[1742469985123,0.27209111,85411.0,85410.0,0.10787893]
[1742469985525,0.27209111,85411.0,85410.0,0.10987893]
[1742469985731,0.27209111,85411.0,85410.0,0.10687893]
[1742469985901,0.27209111,85411.0,85410.0,0.0031694]
[1742469986105,0.27209111,85411.0,85410.0,0.0011694]
[1742469986305,0.27209111,85411.0,85410.0,0.0001694]
[1742469986671,0.27309111,85411.0,85410.0,0.0001694]
[1742469987530,0.27409111,85411.0,85410.0,0.0001694]
[1742469987941,0.14280808,85411.0,85410.0,0.0001694]
[1742469989079,0.37696908,85411.0,85410.0,0.0001694]
[1742469989394,0.38867708,85411.0,85410.0,0.0001694]
[1742469989621,0.14280808,85411.0,85410.0,0.0001694]
[1742469989741,0.12444721,85411.0,85410.0,0.2460414]
[1742469990235,0.00224721,85411.0,85410.0,0.2460414]
[1742469991231,0.00124721,85411.0,85410.0,0.2460414]
[1742469991638,0.00124721,85411.0,85410.0,0.2490414]
[1742469992068,0.00024721,85411.0,85410.0,0.2490414]
[1742469992680,0.00024721,85411.0,85410.0,0.2510414]
[1742469993100,0.01860821,85411.0,85410.0,0.2510414]
[1742469995025,0.01860821,85411.0,85410.0,0.26000654]
[1742469996317,0.01860821,85411.0,85410.0,0.37958157]
[1742469998510,0.01860821,85411.0,85410.0,0.26000654]
[1742470001005,0.00024721,85411.0,85410.0,0.26000654]
[1742470004014,0.01860809,85411.0,85410.0,0.26000654]
[1742470004522,0.01860809,85411.0,85410.0,0.01413454]
[1742470004925,0.01860809,85411.0,85410.0,0.02584254]
[1742470021971,0.01860809,85411.0,85410.0,0.14541757]
[1742470022101,0.01860809,85411.0,85410.0,0.14775896]
[1742470022304,0.00024721,85411.0,85410.0,0.14775896]
[1742470022523,0.00024721,85411.0,85410.0,0.95239941]
[1742470022730,0.00024721,85411.0,85410.0,0.95005802]
[1742470022936,0.00024721,85411.0,85410.0,2.48668281]
[1742470023351,0.00024721,85411.0,85410.0,2.45005802]
[1742470023551,0.00024721,85411.0,85410.0,2.44805802]
[1742470023975,0.00124721,85411.0,85410.0,2.44805802]
[1742470024172,0.00124721,85411.0,85410.0,2.48467407]
[1742470024376,0.00124721,85411.0,85410.0,2.49067407]
[1742470024585,0.00124721,85411.0,85410.0,2.45405802]
[1742470025237,0.01960577,85411.0,85410.0,2.45405802]
[1742470025647,0.0824,85450.0,85449.0,0.245759]
[1742470026285,0.01835459,85450.0,85449.0,0.245759]
[1742470027081,0.02035459,85450.0,85449.0,0.245759]
[1742470027272,0.02035459,85450.0,85449.0,0.36533403]
[1742470027452,0.01935459,85450.0,85449.0,0.36533403]
[1742470028035,0.01835459,85450.0,85449.0,0.36533403]
[1742470028432,0.01835459,85450.0,85449.0,0.003]
[1742470028885,0.01835459,85450.0,85449.0,0.012702]
[1742470029661,0.01835459,85450.0,85449.0,0.011702]
[1742470030089,0.01835459,85450.0,85449.0,0.012702]
[1742470030293,0.01869339,85450.0,85449.0,0.012702]
[1742470030638,0.01869339,85450.0,85449.0,0.13427703]
[1742470030839,0.01869339,85450.0,85449.0,0.13661722]
[1742470031017,0.01869339,85450.0,85449.0,0.55051682]
[1742470031217,0.01869339,85450.0,85449.0,0.56271748]
[1742470031423,0.01869339,85450.0,85449.0,0.56571748]
[1742470031606,0.01869339,85450.0,85449.0,0.56371748]
[1742470031809,0.01869339,85450.0,85449.0,0.56671748]
[1742470034326,0.01869339,85450.0,85449.0,0.55217663]
[1742470034531,0.0003388,85450.0,85449.0,0.55217663]
[1742470037147,0.0003388,85450.0,85449.0,0.56671748]
[1742470037575,0.01869077,85450.0,85449.0,0.56671748]
[1742470041777,0.01869077,85450.0,85449.0,0.69863748]
[1742470043390,0.0003388,85450.0,85449.0,0.69863748]
[1742470043583,0.0003388,85450.0,85449.0,0.68409663]
[1742470043804,0.0003388,85450.0,85449.0,0.4208996]
[1742470043805,0.00063949,85450.0,85449.0,0.4208996]
[1742470044320,0.00063949,85450.0,85449.0,0.4326016]
[1742470044676,0.00063949,85450.0,85449.0,0.4266016]
[1742470045147,0.00063949,85450.0,85449.0,0.4296016]
[1742470046285,0.01899157,85450.0,85449.0,0.4316016]
[1742470047121,0.01899157,85450.0,85449.0,0.4198996]
[1742470047122,0.31154857,85450.0,85449.0,0.4198996]
[1742470048041,0.31154857,85450.0,85449.0,0.4148996]
[1742470048455,0.31154857,85450.0,85449.0,0.4168996]
[1742470048611,0.31154857,85450.0,85449.0,0.002]
[1742470049411,0.31154857,85450.0,85449.0,0.003]
[1742470049772,0.31154857,85450.0,85449.0,0.002]
[1742470049943,0.31154857,85450.0,85449.0,0.003]
[1742470050155,0.31154857,85450.0,85449.0,0.001]
[1742470050553,0.31154857,85450.0,85449.0,0.003]
[1742470050928,0.31154857,85450.0,85449.0,0.001]
[1742470051387,0.31154857,85450.0,85449.0,0.003]
[1742470052632,0.49397152,85450.0,85449.0,0.003]
[1742470053560,0.49397152,85450.0,85449.0,0.001]
[1742470053896,0.49497152,85450.0,85449.0,0.001]
[1742470054358,0.234102,85433.0,85428.0,0.4148996]
[1742470054677,0.245814,85431.0,85428.0,0.4148996]
[1742470054890,0.245817,85429.0,85428.0,0.4148996]
[1742470055502,0.26417357,85429.0,85428.0,0.4148996]
[1742470055703,0.087205,85428.0,85427.0,0.00884143]
[1742470055905,0.087205,85428.0,85411.0,0.415069]
[1742470055906,0.087207,85412.0,85411.0,0.415069]
[1742470056106,0.321366,85412.0,85411.0,0.415069]
[1742470056916,0.33972634,85412.0,85411.0,0.415069]
[1742470057401,0.33972634,85412.0,85411.0,0.416069]
[1742470057745,0.33972634,85412.0,85411.0,0.418069]
[1742470057901,0.38942634,85412.0,85411.0,0.0031694]
[1742470058301,0.01836034,85412.0,85411.0,0.0031694]
[1742470058519,0.01836034,85412.0,85411.0,0.2490384]
[1742470058726,0.01836034,85412.0,85411.0,0.0031694]
[1742470058928,0.03006734,85412.0,85411.0,0.0031694]
[1742470060916,0.011707,85412.0,85411.0,0.0031694]
[1742470061088,0.011707,85412.0,85411.0,0.0021694]
[1742470061287,0.011707,85412.0,85411.0,0.0001694]
[1742470061503,0.011707,85412.0,85411.0,0.0021694]
[1742470061721,0.13192,85416.0,85411.0,0.0041694]
[1742470061921,0.366068,85416.0,85411.0,0.0158774]
[1742470062241,0.13192,85416.0,85412.0,0.234159]
[1742470062391,0.366068,85416.0,85411.0,0.0158774]
[1742470062955,0.011707,85414.0,85411.0,0.0021694]
[1742470063152,0.245866,85413.0,85411.0,0.0021694]
[1742470063376,0.245866,85413.0,85411.0,0.0011694]
[1742470063782,0.26422649,85413.0,85411.0,0.0011694]
[1742470063917,0.26422649,85413.0,85411.0,0.0001694]
[1742470064314,0.011707,85412.0,85411.0,0.0031694]
[1742470064555,0.011707,85412.0,85411.0,0.0021694]
[1742470064768,0.011707,85412.0,85411.0,0.0001694]
[1742470064945,0.011707,85412.0,85411.0,0.0011694]
[1742470065140,0.011707,85412.0,85411.0,0.0001694]
[1742470065348,0.01836049,85413.0,85411.0,0.0001694]
[1742470066324,0.01836049,85413.0,85411.0,0.0021694]
[1742470066616,0.01836049,85413.0,85411.0,0.0031694]
[1742470067001,0.01836049,85413.0,85411.0,0.0021694]
[1742470067221,0.01836049,85413.0,85411.0,0.0031694]
[1742470069071,0.01836049,85413.0,85412.0,0.245866]
[1742470069288,0.01836049,85413.0,85412.0,0.36544103]
[1742470070147,0.01836049,85413.0,85412.0,0.66544103]
[1742470070362,0.0753,85433.0,85431.0,0.24581]
[1742470070548,0.07536346,85433.0,85429.0,0.245815]
[1742470070963,0.07536346,85433.0,85430.0,0.234107]
[1742470071348,0.08706846,85433.0,85428.0,0.011705]
[1742470071544,0.011705,85431.0,85426.0,0.011706]
[1742470071750,0.245814,85431.0,85426.0,0.245824]
[1742470073601,0.245816,85430.0,85425.0,0.245827]
[1742470074902,0.01835774,85429.0,85425.0,0.245827]
[1742470075546,0.01835774,85429.0,85425.0,0.234121]
[1742470076521,0.01835774,85429.0,85425.0,0.235121]
[1742470077127,0.01835774,85429.0,85425.0,0.234121]
[1742470077449,0.01835774,85429.0,85425.0,0.235121]
[1742470078088,0.01835774,85429.0,85425.0,0.236121]
[1742470078301,0.245826,85426.0,85425.0,0.002]
[1742470078504,0.327226,85426.0,85425.0,0.002]
[1742470079238,0.327226,85426.0,85425.0,0.001]
[1742470079554,0.327226,85426.0,85410.0,0.415069]
[1742470079555,0.245866,85412.0,85410.0,0.415069]
[1742470079761,0.234155,85414.0,85410.0,0.415069]
[1742470079970,0.011707,85412.0,85410.0,0.415069]
[1742470080497,0.03006722,85414.0,85410.0,0.415069]
[1742470080822,0.01836022,85414.0,85411.0,0.0041694]
[1742470081054,0.01836022,85414.0,85411.0,0.0158774]
[1742470081262,0.01836022,85414.0,85413.0,0.011707]
[1742470081581,0.315522,85426.0,85421.0,0.245837]
[1742470081804,0.0814,85426.0,85424.0,0.011706]
[1742470081999,0.0814,85426.0,85422.0,0.011706]
[1742470082205,0.0003388,85429.0,85427.0,0.245821]
[1742470082403,0.0003388,85429.0,85428.0,0.011705]
[1742470082604,0.234121,85426.0,85421.0,0.234133]
[1742470082805,0.245832,85425.0,85419.0,0.245844]
[1742470083006,0.245832,85425.0,85419.0,0.234138]
[1742470083220,0.245832,85425.0,85421.0,0.234134]
[1742470083417,0.245832,85425.0,85419.0,0.245844]
[1742470083619,0.011706,85423.0,85417.0,0.011707]
[1742470084073,0.011706,85423.0,85418.0,0.011707]
[1742470084275,0.234149,85416.0,85412.0,0.3]
[1742470084437,0.011706,85421.0,85414.0,0.011707]
[1742470084635,0.245842,85421.0,85415.0,0.234149]
[1742470084852,0.011706,85419.0,85417.0,0.001]
[1742470086331,0.245847,85419.0,85414.0,0.246859]
[1742470086575,0.245847,85419.0,85414.0,0.247859]
[1742470086911,0.245847,85419.0,85414.0,0.246859]
[1742470087307,0.011707,85415.0,85414.0,0.001]
[1742470087743,0.011707,85415.0,85411.0,0.0001694]
[1742470088491,0.011707,85415.0,85414.0,0.002]
[1742470088875,0.245854,85417.0,85414.0,0.004]
[1742470089040,0.245857,85416.0,85414.0,0.002]
[1742470089454,0.077,85419.0,85414.0,0.011707]
[1742470089659,0.077,85419.0,85415.0,0.234148]
[1742470089861,0.311139,85419.0,85414.0,0.011707]
[1742470090066,0.245851,85418.0,85414.0,0.234151]
[1742470090307,0.234144,85418.0,85414.0,0.234151]
[1742470090771,0.234144,85418.0,85414.0,0.236151]
[1742470091244,0.077,85419.0,85415.0,0.245855]
[1742470091462,0.245834,85424.0,85419.0,0.234139]
[1742470091773,0.245834,85424.0,85418.0,0.234141]